[Event "Betsys MČR v online bleskovém šachu 2021"]
[Site "Chess.com"]
[Date "2021.04.17"]
[Round "11"]
[White "Tolja1"]
[Black "mendryxchess"]
[Result "1-0"]
[WhiteElo "2041"]
[BlackElo "1800"]
[TimeControl "180+1"]
[EndTime "10:50:02 PDT"]
[Termination "Uživatel Tolja1 zvítězil matem"]

1. Nf3 {[%clk 0:03:00.9]} 1... c5 {[%clk 0:02:59.5]} 2. c4 {[%clk 0:03:00.6]}
2... Nf6 {[%clk 0:02:58.8]} 3. Nc3 {[%clk 0:03:00.1]} 3... Nc6 {[%clk
0:02:59.1]} 4. e3 {[%clk 0:02:58.6]} 4... d6 {[%clk 0:02:58.6]} 5. d4 {[%clk
0:02:58.6]} 5... g6 {[%clk 0:02:58.5]} 6. d5 {[%clk 0:02:55.7]} 6... Na5 {[%clk
0:02:57.7]} 7. Be2 {[%clk 0:02:52.7]} 7... Bg7 {[%clk 0:02:57.5]} 8. O-O {[%clk
0:02:52.6]} 8... O-O {[%clk 0:02:57.2]} 9. h3 {[%clk 0:02:52.8]} 9... b6 {[%clk
0:02:50.3]} 10. Qc2 {[%clk 0:02:51.1]} 10... Ba6 {[%clk 0:02:48.8]} 11. Nd2
{[%clk 0:02:41.9]} 11... Qc7 {[%clk 0:02:44.6]} 12. Rb1 {[%clk 0:02:38.9]} 12...
Rfc8 {[%clk 0:02:38.4]} 13. a3 {[%clk 0:02:38.8]} 13... Rab8 {[%clk 0:02:36.3]}
14. b3 {[%clk 0:02:24.8]} 14... h6 {[%clk 0:02:27.9]} 15. Bb2 {[%clk 0:02:23.3]}
15... Qb7 {[%clk 0:02:22.7]} 16. a4 {[%clk 0:02:08.5]} 16... Qc7 {[%clk
0:02:17.6]} 17. Bd3 {[%clk 0:02:04.8]} 17... Nb7 {[%clk 0:02:15.4]} 18. Nb5
{[%clk 0:02:00.4]} 18... Bxb5 {[%clk 0:02:10.8]} 19. axb5 {[%clk 0:02:00.5]}
19... Na5 {[%clk 0:02:10.3]} 20. Bc3 {[%clk 0:01:57.1]} 20... Nd7 {[%clk
0:01:57.2]} 21. Bxg7 {[%clk 0:01:22.3]} 21... Kxg7 {[%clk 0:01:58.1]} 22. Qc3+
{[%clk 0:01:20.7]} 22... Kg8 {[%clk 0:01:56.9]} 23. Ra1 {[%clk 0:01:20]} 23...
Ne5 {[%clk 0:01:51.9]} 24. Bc2 {[%clk 0:01:17.6]} 24... Ra8 {[%clk 0:01:49.8]}
25. f4 {[%clk 0:01:16.9]} 25... Nd7 {[%clk 0:01:48.3]} 26. e4 {[%clk 0:01:17.1]}
26... a6 {[%clk 0:01:44.5]} 27. Rae1 {[%clk 0:01:01.4]} 27... axb5 {[%clk
0:01:39.9]} 28. cxb5 {[%clk 0:01:00.2]} 28... Nb7 {[%clk 0:01:37.9]} 29. e5
{[%clk 0:00:56.7]} 29... Ra2 {[%clk 0:01:21.2]} 30. e6 {[%clk 0:00:51.1]} 30...
Nf6 {[%clk 0:01:17.6]} 31. exf7+ {[%clk 0:00:44.9]} 31... Kxf7 {[%clk
0:01:18.5]} 32. Qd3 {[%clk 0:00:38.1]} 32... Rg8 {[%clk 0:01:15.7]} 33. Nc4
{[%clk 0:00:28.9]} 33... Na5 {[%clk 0:01:09.4]} 34. Nxa5 {[%clk 0:00:15.5]}
34... Rxa5 {[%clk 0:01:10.3]} 35. Re2 {[%clk 0:00:14.4]} 35... Raa8 {[%clk
0:01:07]} 36. Rfe1 {[%clk 0:00:14.3]} 36... Rae8 {[%clk 0:01:06.9]} 37. Re6
{[%clk 0:00:14.1]} 37... Qd7 {[%clk 0:01:03.1]} 38. f5 {[%clk 0:00:11.9]} 38...
g5 {[%clk 0:01:00]} 39. Qd2 {[%clk 0:00:10.1]} 39... Kg7 {[%clk 0:00:55]} 40.
Be4 {[%clk 0:00:07.5]} 40... Kf7 {[%clk 0:00:50.9]} 41. Bf3 {[%clk 0:00:07.2]}
41... Rg7 {[%clk 0:00:41.6]} 42. Qe2 {[%clk 0:00:06.9]} 42... Reg8 {[%clk
0:00:36.9]} 43. Bh5+ {[%clk 0:00:06.7]} 43... Kf8 {[%clk 0:00:36.7]} 44. Bg6
{[%clk 0:00:06.9]} 44... Qd8 {[%clk 0:00:33.9]} 45. Rxf6+ {[%clk 0:00:06.6]}
45... exf6 {[%clk 0:00:32.9]} 46. Qe8+ {[%clk 0:00:06.7]} 46... Qxe8 {[%clk
0:00:32.6]} 47. Rxe8# {[%clk 0:00:07.6]} 1-0

[Event "Betsys MČR v online bleskovém šachu 2021"]
[Site "Chess.com"]
[Date "2021.04.17"]
[Round "11"]
[White "YawningBagel"]
[Black "jachym08"]
[Result "1-0"]
[WhiteElo "2000"]
[BlackElo "2221"]
[TimeControl "180+1"]
[EndTime "10:50:04 PDT"]
[Termination "Uživatel YawningBagel zvítězil po vzdání soupeře"]

1. d4 {[%clk 0:03:00.9]} 1... Nf6 {[%clk 0:02:59.6]} 2. c4 {[%clk 0:03:00.9]}
2... g6 {[%clk 0:02:59.6]} 3. Nc3 {[%clk 0:03:01.7]} 3... d5 {[%clk 0:02:59.5]}
4. cxd5 {[%clk 0:03:02.6]} 4... Nxd5 {[%clk 0:03:00.1]} 5. e4 {[%clk 0:03:03.4]}
5... Nxc3 {[%clk 0:03:00.4]} 6. bxc3 {[%clk 0:03:04.3]} 6... Bg7 {[%clk
0:03:01]} 7. Bg5 {[%clk 0:03:04.9]} 7... O-O {[%clk 0:02:58.7]} 8. Rc1 {[%clk
0:03:01.3]} 8... c5 {[%clk 0:02:53.4]} 9. Nf3 {[%clk 0:02:57.8]} 9... Bg4 {[%clk
0:02:35.1]} 10. d5 {[%clk 0:02:57.5]} 10... Qa5 {[%clk 0:02:32]} 11. Qd2 {[%clk
0:02:56.9]} 11... Nd7 {[%clk 0:02:23.5]} 12. Be2 {[%clk 0:02:40.6]} 12... e6
{[%clk 0:02:02.7]} 13. c4 {[%clk 0:02:39.7]} 13... Qxd2+ {[%clk 0:01:56.4]} 14.
Kxd2 {[%clk 0:02:40.6]} 14... Bxf3 {[%clk 0:01:53.7]} 15. Bxf3 {[%clk
0:02:35.9]} 15... e5 {[%clk 0:01:51.8]} 16. Be2 {[%clk 0:02:21.5]} 16... f6
{[%clk 0:01:45.4]} 17. Be3 {[%clk 0:02:21]} 17... Rf7 {[%clk 0:01:42.6]} 18. Rb1
{[%clk 0:02:18.7]} 18... b6 {[%clk 0:01:42.5]} 19. g3 {[%clk 0:02:14.3]} 19...
Re8 {[%clk 0:01:38.4]} 20. a4 {[%clk 0:02:12]} 20... f5 {[%clk 0:01:27.1]} 21.
f3 {[%clk 0:02:11.4]} 21... f4 {[%clk 0:01:23.6]} 22. Bf2 {[%clk 0:02:07.6]}
22... fxg3 {[%clk 0:01:22]} 23. hxg3 {[%clk 0:02:07.5]} 23... Bf6 {[%clk
0:01:16.6]} 24. Be3 {[%clk 0:02:07.4]} 24... Bd8 {[%clk 0:01:12.6]} 25. Kd3
{[%clk 0:01:59.9]} 25... Ref8 {[%clk 0:01:02.1]} 26. Rhf1 {[%clk 0:01:58.4]}
26... Kg7 {[%clk 0:00:56.1]} 27. f4 {[%clk 0:01:57.1]} 27... Bf6 {[%clk
0:00:53.2]} 28. a5 {[%clk 0:01:50.5]} 28... bxa5 {[%clk 0:00:46]} 29. Rb5 {[%clk
0:01:44.5]} 29... exf4 {[%clk 0:00:32.9]} 30. gxf4 {[%clk 0:01:43.2]} 30... Bd8
{[%clk 0:00:28.7]} 31. Bd2 {[%clk 0:01:09.8]} 31... Bc7 {[%clk 0:00:20.5]} 32.
Rb7 {[%clk 0:00:45.8]} 32... Bb6 {[%clk 0:00:20.5]} 33. Kc2 {[%clk 0:00:36]}
33... Kg8 {[%clk 0:00:20]} 34. Bg4 {[%clk 0:00:33.1]} 34... Nf6 {[%clk
0:00:17.2]} 35. Be6 {[%clk 0:00:33.1]} 35... Nxe4 {[%clk 0:00:17.2]} 36. Bxf7+
{[%clk 0:00:31.9]} 36... Rxf7 {[%clk 0:00:18.1]} 37. Rxf7 {[%clk 0:00:32.1]}
37... Kxf7 {[%clk 0:00:18.2]} 38. Kd3 {[%clk 0:00:32.8]} 38... Nd6 {[%clk
0:00:18.2]} 39. Ra1 {[%clk 0:00:27]} 39... Nf5 {[%clk 0:00:16.9]} 40. Bxa5
{[%clk 0:00:26.3]} 40... Nd4 {[%clk 0:00:16.9]} 41. Bxb6 {[%clk 0:00:25.5]}
41... axb6 {[%clk 0:00:17.8]} 42. Rb1 {[%clk 0:00:25.2]} 42... Kf6 {[%clk
0:00:14.8]} 43. Ke4 {[%clk 0:00:21]} 43... Nf5 {[%clk 0:00:12.6]} 44. Rxb6+
{[%clk 0:00:20.5]} 44... Ke7 {[%clk 0:00:13.1]} 45. Ke5 {[%clk 0:00:20.1]} 1-0

[Event "Betsys MČR v online bleskovém šachu 2021"]
[Site "Chess.com"]
[Date "2021.04.17"]
[Round "11"]
[White "tiger196223"]
[Black "TrickyPeat"]
[Result "1-0"]
[WhiteElo "1839"]
[BlackElo "2157"]
[TimeControl "180+1"]
[EndTime "10:50:06 PDT"]
[Termination "Uživatel tiger196223 zvítězil na čas"]

1. d4 {[%clk 0:03:00.9]} 1... Nf6 {[%clk 0:02:59.2]} 2. Nf3 {[%clk 0:03:00.1]}
2... g6 {[%clk 0:02:57.9]} 3. Bg5 {[%clk 0:02:59.6]} 3... Bg7 {[%clk 0:02:57.3]}
4. Nbd2 {[%clk 0:02:59.3]} 4... c5 {[%clk 0:02:55.6]} 5. c3 {[%clk 0:02:58.6]}
5... d5 {[%clk 0:02:53.7]} 6. e3 {[%clk 0:02:57.2]} 6... Nc6 {[%clk 0:02:49.9]}
7. Bd3 {[%clk 0:02:56]} 7... Qb6 {[%clk 0:02:46.7]} 8. Qb3 {[%clk 0:02:54.8]}
8... c4 {[%clk 0:02:42.7]} 9. Qxb6 {[%clk 0:02:53.2]} 9... axb6 {[%clk
0:02:42.6]} 10. Bc2 {[%clk 0:02:50.7]} 10... b5 {[%clk 0:02:42.5]} 11. b4 {[%clk
0:02:32.4]} 11... cxb3 {[%clk 0:02:38.1]} 12. Nxb3 {[%clk 0:02:06.6]} 12... b4
{[%clk 0:02:33.7]} 13. Bd3 {[%clk 0:01:29.1]} 13... bxc3 {[%clk 0:02:30.5]} 14.
O-O {[%clk 0:01:22.1]} 14... Nb4 {[%clk 0:02:25.7]} 15. Bb5+ {[%clk 0:01:17.5]}
15... Bd7 {[%clk 0:02:20.6]} 16. Bxd7+ {[%clk 0:01:16.5]} 16... Nxd7 {[%clk
0:02:18.7]} 17. Rfc1 {[%clk 0:00:54.5]} 17... Rc8 {[%clk 0:01:46.1]} 18. a3
{[%clk 0:00:35.6]} 18... Na6 {[%clk 0:01:34.4]} 19. Rc2 {[%clk 0:00:34.4]} 19...
f6 {[%clk 0:01:27.8]} 20. Bf4 {[%clk 0:00:32.7]} 20... e5 {[%clk 0:01:23.6]} 21.
dxe5 {[%clk 0:00:32.1]} 21... fxe5 {[%clk 0:01:21.4]} 22. Bg5 {[%clk 0:00:30.2]}
22... h6 {[%clk 0:01:11.3]} 23. Bh4 {[%clk 0:00:29.5]} 23... O-O {[%clk
0:00:27.2]} 24. Rd1 {[%clk 0:00:23]} 24... Nb6 {[%clk 0:00:23.3]} 25. Na5 {[%clk
0:00:20.4]} 25... Rf7 {[%clk 0:00:19.3]} 26. Bg3 {[%clk 0:00:18.8]} 26... e4
{[%clk 0:00:16.4]} 27. Ne5 {[%clk 0:00:16.7]} 27... Bxe5 {[%clk 0:00:10.4]} 28.
Bxe5 {[%clk 0:00:15.6]} 28... Na4 {[%clk 0:00:08.6]} 29. Rxd5 {[%clk 0:00:13]}
29... b6 {[%clk 0:00:05.9]} 30. Nb3 {[%clk 0:00:11]} 30... N6c5 {[%clk
0:00:04.9]} 31. Nxc5 {[%clk 0:00:09.9]} 31... Rxc5 {[%clk 0:00:04.1]} 32. Rxc5
{[%clk 0:00:09]} 32... bxc5 {[%clk 0:00:03.7]} 33. Bxc3 {[%clk 0:00:09]} 33...
Rb7 {[%clk 0:00:03.2]} 34. g3 {[%clk 0:00:08.7]} 34... Rb3 {[%clk 0:00:02.8]}
35. Be5 {[%clk 0:00:08.2]} 35... Rxa3 {[%clk 0:00:02.2]} 36. Rd2 {[%clk
0:00:08.3]} 1-0

[Event "Betsys MČR v online bleskovém šachu 2021"]
[Site "Chess.com"]
[Date "2021.04.17"]
[Round "11"]
[White "Kamilotka"]
[Black "JosefBara"]
[Result "0-1"]
[WhiteElo "1581"]
[BlackElo "1318"]
[TimeControl "180+1"]
[EndTime "10:50:06 PDT"]
[Termination "Uživatel JosefBara zvítězil na čas"]

1. e4 {[%clk 0:03:00.9]} 1... e6 {[%clk 0:03:00]} 2. d4 {[%clk 0:03:00.8]} 2...
d5 {[%clk 0:02:59.9]} 3. exd5 {[%clk 0:03:00.5]} 3... exd5 {[%clk 0:03:00]} 4.
c4 {[%clk 0:03:00.5]} 4... dxc4 {[%clk 0:02:59]} 5. Bxc4 {[%clk 0:03:00.2]} 5...
Nf6 {[%clk 0:02:59.1]} 6. Nf3 {[%clk 0:03:00.1]} 6... Be7 {[%clk 0:02:59.1]} 7.
O-O {[%clk 0:02:59.9]} 7... O-O {[%clk 0:02:59]} 8. Nc3 {[%clk 0:02:59.8]} 8...
a6 {[%clk 0:02:59.4]} 9. Bf4 {[%clk 0:02:58.6]} 9... b5 {[%clk 0:02:58.6]} 10.
Be2 {[%clk 0:02:53.7]} 10... Bb7 {[%clk 0:02:58.7]} 11. Re1 {[%clk 0:02:48.7]}
11... Nc6 {[%clk 0:02:58.1]} 12. h3 {[%clk 0:02:46.5]} 12... h6 {[%clk
0:02:57.1]} 13. Nh2 {[%clk 0:02:45.3]} 13... Qxd4 {[%clk 0:02:51.5]} 14. Qc1
{[%clk 0:02:38.5]} 14... Bc5 {[%clk 0:02:18.9]} 15. Be3 {[%clk 0:02:23.4]} 15...
Qe5 {[%clk 0:02:17.4]} 16. Bf3 {[%clk 0:02:15.7]} 16... Bxe3 {[%clk 0:02:12.5]}
17. Rxe3 {[%clk 0:02:10.8]} 17... Qc5 {[%clk 0:02:09.4]} 18. a3 {[%clk
0:01:50.7]} 18... Rab8 {[%clk 0:02:05.7]} 19. b4 {[%clk 0:01:49.1]} 19... Qa7
{[%clk 0:01:52.2]} 20. Ne2 {[%clk 0:01:31.5]} 20... Ne5 {[%clk 0:01:43.1]} 21.
Rxe5 {[%clk 0:01:17.9]} 21... Bxf3 {[%clk 0:01:41.6]} 22. Nxf3 {[%clk
0:01:17.2]} 22... Rfe8 {[%clk 0:01:32.2]} 23. Rxe8+ {[%clk 0:01:16.3]} 23...
Rxe8 {[%clk 0:01:31.6]} 24. Ng3 {[%clk 0:01:16.1]} 24... Rc8 {[%clk 0:01:22.9]}
25. Qd2 {[%clk 0:01:12.7]} 25... c5 {[%clk 0:01:20.1]} 26. bxc5 {[%clk
0:01:09.2]} 26... Qxc5 {[%clk 0:01:17.1]} 27. Re1 {[%clk 0:01:03.7]} 27... Qxa3
{[%clk 0:01:13.1]} 28. Qe2 {[%clk 0:00:51.3]} 28... b4 {[%clk 0:01:09.1]} 29.
Qe7 {[%clk 0:00:45.6]} 29... Qb2 {[%clk 0:00:54.7]} 30. Ne5 {[%clk 0:00:23.1]}
30... Rf8 {[%clk 0:00:51.7]} 31. Nd3 {[%clk 0:00:18.6]} 31... Qb3 {[%clk
0:00:46.5]} 32. Nxb4 {[%clk 0:00:17.4]} 32... a5 {[%clk 0:00:44.5]} 33. Nc6
{[%clk 0:00:13.4]} 33... a4 {[%clk 0:00:42.3]} 34. Nd4 {[%clk 0:00:08.1]} 34...
Qb2 {[%clk 0:00:34.9]} 35. Ndf5 {[%clk 0:00:07.2]} 35... a3 {[%clk 0:00:32.1]}
36. Qe2 {[%clk 0:00:04]} 36... Qb4 {[%clk 0:00:24.2]} 37. Ne7+ {[%clk
0:00:03.4]} 37... Kh8 {[%clk 0:00:22.5]} 38. Qe4 {[%clk 0:00:02.6]} 38... Qb2
{[%clk 0:00:18.6]} 0-1

[Event "Betsys MČR v online bleskovém šachu 2021"]
[Site "Chess.com"]
[Date "2021.04.17"]
[Round "11"]
[White "FutureFideMasseur"]
[Black "Bohous13"]
[Result "0-1"]
[WhiteElo "2431"]
[BlackElo "2240"]
[TimeControl "180+1"]
[EndTime "10:50:08 PDT"]
[Termination "Uživatel Bohous13 zvítězil po vzdání soupeře"]

1. d4 {[%clk 0:03:00.9]} 1... e6 {[%clk 0:02:59.7]} 2. c4 {[%clk 0:03:01]} 2...
d5 {[%clk 0:02:59.9]} 3. Nc3 {[%clk 0:03:01.1]} 3... c5 {[%clk 0:03:00]} 4. cxd5
{[%clk 0:02:58.8]} 4... exd5 {[%clk 0:03:00.9]} 5. Nf3 {[%clk 0:02:59.2]} 5...
Nc6 {[%clk 0:03:01]} 6. g3 {[%clk 0:02:59.3]} 6... Nf6 {[%clk 0:03:01.2]} 7. Bg2
{[%clk 0:02:59.6]} 7... Be7 {[%clk 0:03:01.5]} 8. O-O {[%clk 0:02:59.8]} 8...
O-O {[%clk 0:03:01.5]} 9. Bg5 {[%clk 0:02:54.6]} 9... cxd4 {[%clk 0:03:00.9]}
10. Nxd4 {[%clk 0:02:54.1]} 10... h6 {[%clk 0:03:01.5]} 11. Be3 {[%clk
0:02:52.4]} 11... Ne5 {[%clk 0:03:01.2]} 12. b3 {[%clk 0:02:28.5]} 12... Qa5
{[%clk 0:02:59.5]} 13. Bd2 {[%clk 0:02:25.7]} 13... Qb6 {[%clk 0:02:58.8]} 14.
Nf3 {[%clk 0:02:20.6]} 14... Ng6 {[%clk 0:02:50.8]} 15. Be3 {[%clk 0:02:11.3]}
15... Qa6 {[%clk 0:02:46.6]} 16. Bd4 {[%clk 0:02:07.5]} 16... Be6 {[%clk
0:02:40.5]} 17. Rc1 {[%clk 0:02:03.3]} 17... Rfd8 {[%clk 0:02:35.1]} 18. Re1
{[%clk 0:01:44.2]} 18... Bf5 {[%clk 0:02:29.7]} 19. Na4 {[%clk 0:01:16.7]} 19...
Ne4 {[%clk 0:02:22.9]} 20. Ne5 {[%clk 0:01:10.1]} 20... Bb4 {[%clk 0:02:15.3]}
21. Rf1 {[%clk 0:01:06.3]} 21... Nd2 {[%clk 0:02:10.9]} 22. Bc5 {[%clk
0:00:57.5]} 22... Bxc5 {[%clk 0:01:04.7]} 23. Nxc5 {[%clk 0:00:45.4]} 23... Qxa2
{[%clk 0:01:04.5]} 24. Nxg6 {[%clk 0:00:43.4]} 24... Bxg6 {[%clk 0:00:59.4]} 25.
Ra1 {[%clk 0:00:33.3]} 25... Qc2 {[%clk 0:00:59.1]} 26. Qxc2 {[%clk 0:00:32]}
26... Bxc2 {[%clk 0:00:58.6]} 27. Rfc1 {[%clk 0:00:31.3]} 27... Nxb3 {[%clk
0:00:58.4]} 28. Nxb3 {[%clk 0:00:27.3]} 28... Bxb3 {[%clk 0:00:58]} 29. Rc7
{[%clk 0:00:27.1]} 29... a5 {[%clk 0:00:53.3]} 30. Rxb7 {[%clk 0:00:26.2]} 30...
a4 {[%clk 0:00:53.6]} 31. e3 {[%clk 0:00:26.1]} 31... g5 {[%clk 0:00:51.1]} 32.
Kf1 {[%clk 0:00:18.1]} 32... Bc4+ {[%clk 0:00:50.5]} 33. Ke1 {[%clk 0:00:17.6]}
33... a3 {[%clk 0:00:50.8]} 34. Kd2 {[%clk 0:00:17.1]} 34... a2 {[%clk 0:00:51]}
35. Kc3 {[%clk 0:00:15.4]} 35... Rdb8 {[%clk 0:00:43.8]} 36. Rxb8+ {[%clk
0:00:14.4]} 36... Rxb8 {[%clk 0:00:43.6]} 37. Kc2 {[%clk 0:00:14.2]} 37... f5
{[%clk 0:00:40.5]} 38. f4 {[%clk 0:00:12.2]} 38... gxf4 {[%clk 0:00:39.6]} 39.
exf4 {[%clk 0:00:11.9]} 39... Kf7 {[%clk 0:00:39.4]} 40. Bf3 {[%clk 0:00:11.5]}
40... Ke6 {[%clk 0:00:37.6]} 41. Bg2 {[%clk 0:00:11.4]} 41... Kd6 {[%clk
0:00:37.7]} 42. Bf1 {[%clk 0:00:11.6]} 42... Rb1 {[%clk 0:00:19.4]} 0-1

[Event "Betsys MČR v online bleskovém šachu 2021"]
[Site "Chess.com"]
[Date "2021.04.17"]
[Round "11"]
[White "maelic"]
[Black "veronikam"]
[Result "0-1"]
[WhiteElo "1753"]
[BlackElo "1616"]
[TimeControl "180+1"]
[EndTime "10:50:08 PDT"]
[Termination "Uživatel veronikam zvítězil po vzdání soupeře"]

1. e4 {[%clk 0:03:00.9]} 1... e5 {[%clk 0:02:58.8]} 2. Nf3 {[%clk 0:03:01]} 2...
Nf6 {[%clk 0:02:58.2]} 3. Nc3 {[%clk 0:03:00.7]} 3... Nc6 {[%clk 0:02:57.2]} 4.
d4 {[%clk 0:03:01]} 4... exd4 {[%clk 0:02:56.7]} 5. Nxd4 {[%clk 0:03:01.9]} 5...
Bb4 {[%clk 0:02:55.6]} 6. Nxc6 {[%clk 0:02:51.4]} 6... bxc6 {[%clk 0:02:53.5]}
7. Bd3 {[%clk 0:02:50.2]} 7... d5 {[%clk 0:02:49]} 8. exd5 {[%clk 0:02:42.5]}
8... cxd5 {[%clk 0:02:48.1]} 9. Qe2+ {[%clk 0:02:38.9]} 9... Be6 {[%clk
0:02:42.6]} 10. O-O {[%clk 0:02:30]} 10... O-O {[%clk 0:02:41.6]} 11. Bg5 {[%clk
0:02:25.2]} 11... c6 {[%clk 0:02:29.3]} 12. Qf3 {[%clk 0:02:23.9]} 12... Rb8
{[%clk 0:02:19.9]} 13. Bxf6 {[%clk 0:02:20.1]} 13... Qxf6 {[%clk 0:02:19.7]} 14.
Qxf6 {[%clk 0:02:20.2]} 14... gxf6 {[%clk 0:02:19.6]} 15. Ne2 {[%clk 0:02:16.8]}
15... Bd6 {[%clk 0:02:17.7]} 16. b3 {[%clk 0:02:13.1]} 16... Be5 {[%clk
0:02:16.1]} 17. Rad1 {[%clk 0:02:12.7]} 17... c5 {[%clk 0:02:04.3]} 18. Ng3
{[%clk 0:02:03.8]} 18... Rfc8 {[%clk 0:01:50.3]} 19. Bf5 {[%clk 0:01:58.7]}
19... c4 {[%clk 0:01:44.8]} 20. Rd2 {[%clk 0:01:23.7]} 20... Bf4 {[%clk
0:01:38.1]} 21. Re2 {[%clk 0:01:22.2]} 21... Rb6 {[%clk 0:01:31.5]} 22. Rfe1
{[%clk 0:01:20]} 22... Rcc6 {[%clk 0:01:25.3]} 23. Bxe6 {[%clk 0:00:48.7]} 23...
fxe6 {[%clk 0:01:24.2]} 24. Nh5 {[%clk 0:00:48.4]} 24... Be5 {[%clk 0:01:22]}
25. f4 {[%clk 0:00:46.1]} 25... Bd4+ {[%clk 0:01:21.6]} 26. Kf1 {[%clk
0:00:43.6]} 26... Kf7 {[%clk 0:01:21.1]} 27. g4 {[%clk 0:00:42.1]} 27... Ra6
{[%clk 0:01:12.2]} 28. a4 {[%clk 0:00:32.8]} 28... cxb3 {[%clk 0:01:07.3]} 29.
cxb3 {[%clk 0:00:33.7]} 29... Rab6 {[%clk 0:01:07.1]} 30. Rd1 {[%clk 0:00:31.1]}
30... Bc3 {[%clk 0:00:56]} 31. Rb1 {[%clk 0:00:26.8]} 31... Ba5 {[%clk
0:00:44.5]} 32. Ng3 {[%clk 0:00:20.7]} 32... Rc3 {[%clk 0:00:42.9]} 33. Kg2
{[%clk 0:00:19.1]} 33... Rcxb3 {[%clk 0:00:41]} 34. Rxb3 {[%clk 0:00:19.2]}
34... Rxb3 {[%clk 0:00:40.7]} 35. Ra2 {[%clk 0:00:19.7]} 35... Be1 {[%clk
0:00:38.1]} 36. h3 {[%clk 0:00:18.1]} 36... Bxg3 {[%clk 0:00:34.6]} 37. a5
{[%clk 0:00:16.9]} 37... Bxf4 {[%clk 0:00:33.8]} 38. a6 {[%clk 0:00:17.8]} 38...
Bc7 {[%clk 0:00:29.5]} 39. Rc2 {[%clk 0:00:17.5]} 39... Bb6 {[%clk 0:00:26.4]}
40. Rc6 {[%clk 0:00:17.6]} 40... Ke7 {[%clk 0:00:25.3]} 41. h4 {[%clk
0:00:15.2]} 41... Ra3 {[%clk 0:00:25.1]} 42. h5 {[%clk 0:00:13.3]} 42... Rxa6
{[%clk 0:00:24.5]} 43. h6 {[%clk 0:00:13.5]} 43... Ra2+ {[%clk 0:00:24]} 44. Kf3
{[%clk 0:00:13.6]} 44... Kd7 {[%clk 0:00:23.5]} 45. Rc1 {[%clk 0:00:11.8]} 45...
Ra3+ {[%clk 0:00:23.5]} 46. Kg2 {[%clk 0:00:11.1]} 46... Be3 {[%clk 0:00:23.4]}
0-1

[Event "Betsys MČR v online bleskovém šachu 2021"]
[Site "Chess.com"]
[Date "2021.04.17"]
[Round "11"]
[White "Ladislav1969"]
[Black "marecek1754"]
[Result "1/2-1/2"]
[WhiteElo "2317"]
[BlackElo "2184"]
[TimeControl "180+1"]
[EndTime "10:50:09 PDT"]
[Termination "Remíza opakováním pozice"]

1. e4 {[%clk 0:03:00.9]} 1... e5 {[%clk 0:02:59.5]} 2. Bc4 {[%clk 0:03:00.4]}
2... Nf6 {[%clk 0:02:50.8]} 3. d3 {[%clk 0:02:59.5]} 3... Nc6 {[%clk 0:02:49.6]}
4. Nf3 {[%clk 0:02:58.3]} 4... Bc5 {[%clk 0:02:46.9]} 5. c3 {[%clk 0:02:58.4]}
5... d6 {[%clk 0:02:45.3]} 6. Nbd2 {[%clk 0:02:55.5]} 6... O-O {[%clk
0:02:44.8]} 7. O-O {[%clk 0:02:53.6]} 7... Be6 {[%clk 0:02:44.1]} 8. Qe2 {[%clk
0:02:46.5]} 8... Qd7 {[%clk 0:02:14.6]} 9. b4 {[%clk 0:02:30.5]} 9... Bb6 {[%clk
0:02:05]} 10. Bxe6 {[%clk 0:02:26.6]} 10... fxe6 {[%clk 0:02:00.9]} 11. Nc4
{[%clk 0:02:26.7]} 11... Ne7 {[%clk 0:01:57.9]} 12. a4 {[%clk 0:02:16.5]} 12...
c6 {[%clk 0:01:55.9]} 13. Nxb6 {[%clk 0:02:15.3]} 13... axb6 {[%clk 0:01:56.1]}
14. Be3 {[%clk 0:02:14.1]} 14... c5 {[%clk 0:01:50.2]} 15. bxc5 {[%clk
0:02:08.4]} 15... bxc5 {[%clk 0:01:48.8]} 16. a5 {[%clk 0:01:58.2]} 16... Nc6
{[%clk 0:01:41.8]} 17. Rfb1 {[%clk 0:01:36.3]} 17... Rxa5 {[%clk 0:01:31.6]} 18.
Rxa5 {[%clk 0:01:34.8]} 18... Nxa5 {[%clk 0:01:30.4]} 19. Qa2 {[%clk 0:01:35]}
19... Nc6 {[%clk 0:01:21.6]} 20. Rb6 {[%clk 0:01:31.1]} 20... Nh5 {[%clk
0:00:57.1]} 21. Qb3 {[%clk 0:01:07.5]} 21... Nd8 {[%clk 0:00:54.1]} 22. d4
{[%clk 0:01:03.2]} 22... exd4 {[%clk 0:00:52.4]} 23. cxd4 {[%clk 0:01:03.4]}
23... cxd4 {[%clk 0:00:45.6]} 24. Nxd4 {[%clk 0:01:02.5]} 24... Nf4 {[%clk
0:00:44.1]} 25. g3 {[%clk 0:00:53.2]} 25... Ng6 {[%clk 0:00:35.6]} 26. Nf5
{[%clk 0:00:48.4]} 26... d5 {[%clk 0:00:25.3]} 27. Nd4 {[%clk 0:00:36.8]} 27...
Ne5 {[%clk 0:00:22.2]} 28. exd5 {[%clk 0:00:25.8]} 28... exd5 {[%clk 0:00:21.9]}
29. Kg2 {[%clk 0:00:17.1]} 29... Kh8 {[%clk 0:00:21.7]} 30. Rb5 {[%clk
0:00:16.3]} 30... Nc4 {[%clk 0:00:19]} 31. Bf4 {[%clk 0:00:14.4]} 31... Rxf4
{[%clk 0:00:17.8]} 32. gxf4 {[%clk 0:00:13.7]} 32... Qg4+ {[%clk 0:00:17.9]} 33.
Qg3 {[%clk 0:00:13.7]} 33... Qd7 {[%clk 0:00:10.1]} 34. Qf3 {[%clk 0:00:12.4]}
34... Nd2 {[%clk 0:00:08.6]} 35. Qxd5 {[%clk 0:00:10.7]} 35... Qg4+ {[%clk
0:00:08.4]} 36. Kh1 {[%clk 0:00:10.3]} 36... Qd1+ {[%clk 0:00:07.7]} 37. Kg2
{[%clk 0:00:10.5]} 37... Qg4+ {[%clk 0:00:06.6]} 38. Kh1 {[%clk 0:00:09.7]}
38... Qd1+ {[%clk 0:00:04.1]} 39. Kg2 {[%clk 0:00:09.9]} 39... Qg4+ {[%clk
0:00:03.7]} 1/2-1/2